fUSD/lending_fUSD_20260107
["ID","MTS","AMOUNT","RATE_DAILY","PERIOD"]
[400785063,1767828640599,-501.0,0.00014068,2]
[400785065,1767828640608,-210.07522356,0.00014068,2]
[400785067,1767828640619,-500.0,0.00014068,2]
[400785069,1767828640629,-979.0,0.00014068,2]
[400785071,1767828640638,-650.0,0.00014068,2]
[400785073,1767828640648,-200.0,0.00014107,2]
[400785075,1767828640657,-200.0,0.00014107,2]
[400785077,1767828640667,-150.0,0.00014123,2]
[400785079,1767828640677,-457.0,0.00014123,2]
[400785081,1767828640686,-1280.0,0.00014123,2]
[400785084,1767828640700,-231.23799714,0.00014123,2]
[400785085,1767828640709,-204.51452503,0.00014123,2]
[400785088,1767828640719,-150.0,0.00014123,2]
[400785090,1767828640728,-344.59805743,0.00014123,2]
[400785092,1767828640738,-500.0,0.00014123,2]
[400785093,1767828640747,-150.0,0.00014123,2]
[400785096,1767828640757,-300.0,0.00014123,2]
[400785098,1767828640767,-500.0,0.00014123,2]
[400785099,1767828640776,-500.0,0.00014123,2]
[400785102,1767828640792,-501.0,0.00014123,2]
[400785104,1767828640802,-500.0,0.00014123,2]
[400785106,1767828640811,-979.0,0.00014123,2]
[400785108,1767828640822,-650.0,0.00014123,2]
[400785110,1767828640832,-1936.86793424,0.0001415,2]
[400785112,1767828640842,-150.0,0.00014177,2]
[400785115,1767828640852,-457.0,0.00014177,2]
[400785117,1767828640863,-1280.0,0.00014177,2]
[400785119,1767828640873,-150.0,0.00014177,2]
[400785121,1767828640883,-500.0,0.00014177,2]
[400785123,1767828640892,-150.0,0.00014177,2]
[400785125,1767828640902,-500.0,0.00014177,2]
[400785127,1767828640913,-630.5289711,0.00014177,2]
[400785129,1767828640923,-501.0,0.00014177,2]
[400785131,1767828640932,-500.0,0.00014177,2]
[400785133,1767828640942,-979.0,0.00014177,2]
[400785135,1767828640951,-650.0,0.00014177,2]
[400785137,1767828640961,-361.97949191,0.00014207,2]
[400785139,1767828640971,-361.97949191,0.00014207,2]
[400785141,1767828640981,-150.0,0.00014232,2]
[400785143,1767828640995,-457.0,0.00014232,2]
[400785146,1767828641005,-1280.0,0.00014232,2]
[400785148,1767828641015,-249.62704522,0.00014232,2]
[400785150,1767828641025,-500.0,0.00014232,2]
[400785152,1767828641035,-150.0,0.00014232,2]
[400785154,1767828641045,-500.0,0.00014232,2]
[400785156,1767828641055,-501.0,0.00014232,2]
[400785158,1767828641064,-500.0,0.00014232,2]
[400785160,1767828641074,-979.0,0.00014232,2]
[400785162,1767828641084,-650.0,0.00014232,2]
[400785164,1767828641094,-500.0,0.0001424,2]
[400785166,1767828641103,-200.0,0.0001424,2]
[400785168,1767828641113,-1755.28,0.00014246,2]
[400785170,1767828641123,-500.0,0.00014246,2]
[400785172,1767828641133,-1347.32258893,0.00014247,2]
[400785174,1767828641142,-569.18,0.00014247,2]
[400785176,1767828641152,-200.0,0.00014248,2]
[400785178,1767828641162,-200.0,0.00014248,2]
[400785180,1767828641171,-200.67704286,0.00014273,2]
[400785182,1767828641181,-206.1,0.00014283,2]
[400785184,1767828641191,-300.0,0.00014285,2]
[400785186,1767828641201,-300.0,0.00014285,2]
[400785188,1767828641210,-1138.62472585,0.00014285,2]
[400785191,1767828641221,-200.0,0.00014287,2]
[400785194,1767828641230,-457.0,0.00014287,2]
[400785196,1767828641239,-1280.0,0.00014287,2]
[400785198,1767828641250,-500.0,0.00014287,2]
[400785200,1767828641260,-200.0,0.00014287,2]
[400785202,1767828641270,-500.0,0.00014287,2]
[400785204,1767828641279,-501.0,0.00014287,2]
[400785206,1767828641289,-500.0,0.00014287,2]
[400785208,1767828641299,-979.0,0.00014287,2]
[400785210,1767828641309,-650.0,0.00014287,2]
[400785213,1767828641319,-976.20697956,0.00014319,2]
[400785215,1767828641330,-457.0,0.00014342,2]
[400785217,1767828641340,-1280.0,0.00014342,2]
[400785219,1767828641353,-500.0,0.00014342,2]
[400785221,1767828641364,-500.0,0.00014342,2]
[400785223,1767828641374,-501.0,0.00014342,2]
[400785226,1767828641385,-519.25199485,0.00014342,2]
[400785228,1767828641395,-979.0,0.00014342,2]
[400785230,1767828641405,-650.0,0.00014342,2]
[400785232,1767828641415,-250.62315012,0.00014365,2]
[400785234,1767828641425,-2500.0,0.00014365,2]
[400785236,1767828641436,-195.0,0.00014365,2]
[400785238,1767828641446,-5000.0,0.00014365,2]
[400785240,1767828641455,-300.0,0.00014365,2]
[400785242,1767828641466,-300.0,0.00014365,2]
[400785244,1767828641476,-323.96407096,0.00014365,2]
[400785246,1767828641486,-152.10889041,0.00014365,2]
[400785248,1767828641496,-250.0,0.00014365,2]
[400785250,1767828641506,-2500.0,0.00014365,2]
[400785252,1767828641516,-1661.37527415,0.00014365,2]
[400785255,1767828641526,-195.0,0.00014365,2]
[400785257,1767828641536,-367.34,0.00014374,2]
[400785259,1767828641545,-457.0,0.00014397,2]
[400785261,1767828641555,-1280.0,0.00014397,2]
[400785263,1767828641565,-500.0,0.00014397,2]
[400785265,1767828641575,-494.00411142,0.00014397,2]
[400785267,1767828641585,-501.0,0.00014397,2]
[400785269,1767828641595,-979.0,0.00014397,2]
[400785271,1767828641605,-650.0,0.00014397,2]
[400785273,1767828641615,-457.0,0.00014451,2]
[400785275,1767828641626,-1280.0,0.00014451,2]
[400785277,1767828641636,-300.0,0.00014451,2]
[400785279,1767828641648,-501.0,0.00014451,2]
[400785281,1767828641658,-979.0,0.00014451,2]
[400785284,1767828641669,-650.0,0.00014451,2]
[400785286,1767828641679,-522.24,0.00014455,2]
[400785288,1767828641689,-2647.6,0.00014505,2]
[400785290,1767828641699,-457.0,0.00014506,2]
[400785292,1767828641710,-1280.0,0.00014506,2]
[400785294,1767828641720,-501.0,0.00014506,2]
[400785296,1767828641730,-979.0,0.00014506,2]
[400785298,1767828641743,-650.0,0.00014506,2]
[400785301,1767828641753,-1755.28,0.0001452,2]
[400785303,1767828641763,-500.0,0.0001452,2]
[400785305,1767828641774,-457.0,0.00014561,2]
[400785307,1767828641784,-1280.0,0.00014561,2]
[400785309,1767828641795,-501.0,0.00014561,2]
[400785311,1767828641806,-979.0,0.00014561,2]
[400785313,1767828641816,-650.0,0.00014561,2]
[400785315,1767828641825,-500.0,0.00014587,2]
[400785317,1767828641836,-255.0,0.000146,2]
[400785319,1767828641845,-569.18,0.00014615,2]
[400785321,1767828641855,-457.0,0.00014616,2]
[400785323,1767828641866,-1280.0,0.00014616,2]
[400785325,1767828641877,-501.0,0.00014616,2]
[400785328,1767828641889,-979.0,0.00014616,2]
[400785330,1767828641898,-650.0,0.00014616,2]
[400785332,1767828641908,-500.0,0.00014642,2]
[400785334,1767828641919,-457.0,0.00014671,2]
[400785336,1767828641929,-1280.0,0.00014671,2]
[400785338,1767828641939,-501.0,0.00014671,2]
[400785340,1767828641949,-979.0,0.00014671,2]
[400785342,1767828641959,-650.0,0.00014671,2]
[400785344,1767828641968,-500.0,0.00014697,2]
[400785346,1767828641979,-457.0,0.00014725,2]
[400785348,1767828641992,-1280.0,0.00014725,2]
[400785350,1767828642002,-501.0,0.00014725,2]
[400785352,1767828642012,-979.0,0.00014725,2]
[400785354,1767828642022,-650.0,0.00014725,2]
[400785356,1767828642034,-500.0,0.00014751,2]
[400785358,1767828642044,-1322.49512864,0.00014761,2]
[400785360,1767828642054,-547.68,0.00014767,2]
[400785362,1767828642064,-420.0,0.00014777,2]
[400785365,1767828642076,-457.0,0.0001478,2]
[400785367,1767828642087,-1280.0,0.0001478,2]
[400785369,1767828642097,-501.0,0.0001478,2]
[400785371,1767828642107,-979.0,0.0001478,2]
[400785373,1767828642116,-650.0,0.0001478,2]
[400785375,1767828642127,-500.0,0.00014788,2]
[400785378,1767828642141,-307.8049795,0.00014788,2]
[400785380,1767828642150,-500.0,0.00014794,2]
[400785382,1767828642160,-1755.28,0.00014794,2]
[400785383,1767828642170,-272.01341084,0.00014806,2]
[400785386,1767828642180,-361.97949191,0.00014823,2]
[400785388,1767828642189,-361.97949191,0.00014823,2]
[400785389,1767828642198,-195.0,0.00014829,2]
[400785390,1767828642208,-1680.0,0.00014829,2]
[400785391,1767828642218,-300.0,0.0001483,2]
[400785392,1767828642227,-250.0,0.0001483,2]
[400785393,1767828642237,-195.0,0.0001483,2]
[400785394,1767828642247,-457.0,0.00014835,2]
[400785395,1767828642257,-1280.0,0.00014835,2]
[400785396,1767828642267,-501.0,0.00014835,2]
[400785397,1767828642277,-979.0,0.00014835,2]
[400785398,1767828642286,-650.0,0.00014835,2]
[400785399,1767828642296,-500.0,0.00014861,2]
[400785400,1767828642305,-500.0,0.00014861,2]
[400785401,1767828642314,-1199.0,0.00014861,2]
[400785403,1767828642324,-457.0,0.0001489,2]
[400785405,1767828642335,-1280.0,0.0001489,2]
[400785407,1767828642345,-501.0,0.0001489,2]
[400785409,1767828642355,-979.0,0.0001489,2]
[400785411,1767828642365,-650.0,0.0001489,2]
[400785413,1767828642375,-151.0,0.00014909,2]
[400785415,1767828642386,-151.0,0.00014909,2]
[400785417,1767828642395,-151.0,0.00014927,2]
[400785419,1767828642407,-151.0,0.00014927,2]
[400785421,1767828642417,-151.0,0.00014944,2]
[400785423,1767828642427,-151.0,0.00014944,2]
[400785425,1767828642437,-457.0,0.00014945,2]
[400785427,1767828642447,-1280.0,0.00014945,2]
[400785429,1767828642457,-501.0,0.00014945,2]
[400785432,1767828642467,-979.0,0.00014945,2]
[400785434,1767828642477,-650.0,0.00014945,2]
[400785436,1767828642487,-200.67704286,0.00014954,2]
[400785438,1767828642497,-151.0,0.00014963,2]
[400785440,1767828642507,-151.0,0.00014963,2]
[400785442,1767828642520,-151.0,0.0001499,2]
[400785444,1767828642529,-151.0,0.0001499,2]
[400785446,1767828642539,-457.0,0.00014999,2]
[400785449,1767828642549,-1280.0,0.00014999,2]
[400785451,1767828642559,-501.0,0.00014999,2]
[400785453,1767828642569,-979.0,0.00014999,2]
[400785455,1767828642579,-151.0,0.00015025,2]
[400785457,1767828642588,-457.0,0.00015054,2]
[400785459,1767828642598,-1280.0,0.00015054,2]
[400785461,1767828642608,-979.0,0.00015054,2]
[400785463,1767828642618,-501.0,0.00015054,2]
[400785465,1767828642629,-500.0,0.00015068,2]
[400785467,1767828642639,-1755.28,0.00015068,2]
[400785470,1767828642650,-500.0,0.00015068,2]
[400785472,1767828642660,-552.50710843,0.00015073,2]
[400785474,1767828642669,-556.0741427,0.00015073,2]
[400785476,1767828642679,-502.16378022,0.00015073,2]
[400785478,1767828642690,-500.0,0.00015073,2]
[400785480,1767828642699,-500.0,0.00015073,2]
[400785482,1767828642709,-536.66734105,0.00015073,2]
[400785484,1767828642719,-500.0,0.00015073,2]
[400785486,1767828642729,-500.0,0.00015073,2]
[400785488,1767828642739,-500.0,0.00015073,2]
[400785490,1767828642749,-500.0,0.00015073,2]
[400785492,1767828642758,-500.0,0.00015073,2]
[400785494,1767828642768,-169.74559645,0.00015073,2]
[400785496,1767828642778,-500.0,0.00015073,2]
[400785498,1767828642788,-210.44596134,0.00015073,2]
[400785500,1767828642798,-500.0,0.00015073,2]
[400785502,1767828642807,-411.91622264,0.00015073,2]
[400785504,1767828642817,-500.0,0.00015073,2]
[400785506,1767828642826,-500.0,0.00015073,2]
[400785508,1767828642836,-161.8794398,0.00015073,2]
[400785510,1767828642846,-500.0,0.00015073,2]
[400785512,1767828642856,-500.0,0.00015073,2]
[400785514,1767828642867,-500.0,0.00015073,2]
[400785516,1767828642877,-500.0,0.00015073,2]
[400785518,1767828642888,-413.08976684,0.00015073,2]
[400785520,1767828642897,-500.0,0.00015073,2]
[400785523,1767828642909,-500.0,0.00015073,2]
[400785525,1767828642918,-500.0,0.00015073,2]
[400785527,1767828642928,-635.71123212,0.00015073,2]
[400785529,1767828642938,-500.0,0.00015073,2]
[400785531,1767828642947,-500.0,0.00015073,2]
[400785533,1767828642957,-500.0,0.00015073,2]
[400785535,1767828642966,-367.34,0.00015092,2]
[400785537,1767828642976,-457.0,0.00015109,2]
[400785539,1767828642990,-1280.0,0.00015109,2]
[400785541,1767828643000,-979.0,0.00015109,2]
[400785543,1767828643010,-501.0,0.00015109,2]
[400785545,1767828643020,-500.0,0.00015123,2]
[400785547,1767828643030,-457.0,0.00015164,2]
[400785549,1767828643039,-1280.0,0.00015164,2]
[400785551,1767828643049,-979.0,0.00015164,2]
[400785553,1767828643059,-428.98,0.00015166,2]
[400785555,1767828643069,-500.0,0.00015178,2]
[400785557,1767828643079,-457.0,0.00015218,2]
[400785559,1767828643089,-1280.0,0.00015218,2]
[400785561,1767828643099,-500.0,0.00015232,2]
[400785563,1767828643109,-471.61097423,0.00015273,2]
[400785565,1767828643119,-1286.2212164,0.00015273,2]
[400785567,1767828643129,-154.78,0.00015274,2]
[400785569,1767828643139,-1322.49512859,0.00015284,2]
[400785571,1767828643148,-500.0,0.00015287,2]
[400785573,1767828643158,-500.0,0.00015336,2]
[400785575,1767828643167,-521.47480439,0.00015342,2]
[400785577,1767828643177,-1755.28,0.00015342,2]
[400785579,1767828643187,-361.97949191,0.00015438,2]
[400785581,1767828643197,-983.67,0.00015473,2]
[400785583,1767828643207,-1755.28,0.00015616,2]
[400785585,1767828643217,-1029.13192156,0.00015621,2]
[400785588,1767828643227,-1000.0,0.00015621,2]
[400785589,1767828643237,-1000.0,0.00015621,2]
[400785591,1767828643247,-1000.0,0.00015621,2]
[400785593,1767828643257,-821.82288534,0.00015621,2]
[400785596,1767828643267,-515.65451742,0.00015621,2]
[400785598,1767828643277,-1000.0,0.00015621,2]
[400785600,1767828643287,-1000.0,0.00015621,2]
[400785602,1767828643297,-1000.0,0.00015621,2]
[400785604,1767828643307,-1000.0,0.00015621,2]
[400785606,1767828643317,-1000.0,0.00015621,2]
[400785608,1767828643327,-1000.0,0.00015621,2]
[400785610,1767828643337,-500.73448024,0.00015621,2]
[400785612,1767828643347,-1000.0,0.00015621,2]
[400785614,1767828643357,-1000.0,0.00015621,2]
[400785616,1767828643367,-1000.0,0.00015621,2]
[400785618,1767828643378,-1000.0,0.00015621,2]
[400785620,1767828643388,-1009.96734995,0.00015621,2]
[400785622,1767828643398,-2045.30003102,0.00015807,2]
[400785624,1767828643407,-1322.49512859,0.00015807,2]
[400785626,1767828643417,-367.34,0.00015811,2]
[400785628,1767828643427,-433.0,0.00015813,2]
[400785630,1767828643437,-500.0,0.00015884,2]
[400785632,1767828643448,-1755.28,0.0001589,2]
[400785635,1767828643458,-882.0,0.0001589,2]
[400785637,1767828643468,-13085.783537,0.000159,2]
[400785639,1767828643478,-1000.0,0.00015918,2]
[400785641,1767828643487,-132747.14261672,0.00016,2]
[400785643,1767828643497,-150211.75203918,0.00016,4]
[400785645,1767828643507,-249.063448,0.00016,2]
[400785647,1767828643517,-150.0,0.00016016,2]
[400785649,1767828643527,-500.0,0.00016016,2]
[400785651,1767828643537,-150.0,0.00016016,2]
[400785653,1767828643546,-151.66178001,0.00016016,2]
[400785655,1767828643556,-500.0,0.00016016,2]
[400785657,1767828643565,-150.0,0.00016016,2]
[400785659,1767828643575,-500.0,0.00016016,2]
[400785661,1767828643585,-569.18,0.00016024,2]
[400785663,1767828643595,-500.0,0.00016055,2]
[400785665,1767828643605,-150.0,0.00016071,2]
[400785667,1767828643615,-500.0,0.00016071,2]
[400785669,1767828643625,-150.0,0.00016071,2]
[400785671,1767828643635,-150.0,0.00016071,2]
[400785673,1767828643646,-500.0,0.00016071,2]
[400785676,1767828643655,-500.0,0.00016071,2]
[400785678,1767828643667,-151.0,0.00016078,2]
[400785680,1767828643676,-1500.0,0.00016078,2]
[400785682,1767828643685,-1500.0,0.00016078,2]
[400785684,1767828643695,-1500.0,0.00016078,2]
[400785686,1767828643705,-1500.0,0.00016078,2]
[400785688,1767828643715,-322.6107,0.00016078,2]
[400785690,1767828643724,-500.0,0.00016078,2]
[400785692,1767828643734,-1500.0,0.00016078,2]
[400785694,1767828643744,-151.55763012,0.00016078,2]
[400785696,1767828643754,-500.0,0.00016078,2]
[400785698,1767828643764,-1500.0,0.00016078,2]
[400785700,1767828643774,-500.0,0.00016078,2]
[400785702,1767828643784,-1500.0,0.00016078,2]
[400785704,1767828643793,-500.0,0.00016078,2]
[400785706,1767828643802,-1500.0,0.00016078,2]
[400785708,1767828643812,-500.0,0.00016078,2]
[400785710,1767828643821,-1500.0,0.00016078,2]
[400785712,1767828643831,-500.0,0.00016078,2]
[400785714,1767828643841,-1500.0,0.00016078,2]
[400785716,1767828643850,-574.12855637,0.00016078,2]
[400785718,1767828643861,-500.0,0.00016078,2]
[400785720,1767828643872,-1500.0,0.00016078,2]
[400785722,1767828643881,-500.0,0.00016078,2]
[400785724,1767828643891,-200.0,0.00016078,2]
[400785726,1767828643901,-500.0,0.00016078,2]
[400785728,1767828643910,-207.4,0.00016078,2]
[400785730,1767828643919,-500.0,0.00016078,2]
[400785733,1767828643929,-215.0738,0.00016078,2]
[400785735,1767828643938,-500.0,0.00016078,2]
[400785737,1767828643948,-223.0315306,0.00016078,2]
[400785739,1767828643957,-231.28369723,0.00016078,2]
[400785741,1767828643967,-239.84119403,0.00016078,2]
[400785743,1767828643977,-500.0,0.00016078,2]
[400785745,1767828643989,-248.71531821,0.00016078,2]
[400785747,1767828644000,-620.0,0.00016078,2]
[400785749,1767828644010,-448.72451731,0.00016078,2]
[400785751,1767828644019,-257.91778498,0.00016078,2]
[400785753,1767828644030,-500.0,0.00016078,2]
[400785755,1767828644039,-500.0,0.00016078,2]
[400785757,1767828644048,-267.46074303,0.00016078,2]
[400785759,1767828644058,-500.0,0.00016078,2]
[400785761,1767828644067,-404.25522477,0.00016078,2]
[400785763,1767828644077,-277.35679052,0.00016078,2]
[400785765,1767828644086,-500.0,0.00016078,2]
[400785767,1767828644095,-500.0,0.00016078,2]
[400785769,1767828644105,-2000.0,0.00016078,2]
[400785771,1767828644115,-500.0,0.00016078,2]
[400785773,1767828644125,-2000.0,0.00016078,2]
[400785775,1767828644134,-500.0,0.00016078,2]
[400785777,1767828644144,-2000.0,0.00016078,2]
[400785779,1767828644155,-500.0,0.00016078,2]
[400785781,1767828644164,-500.0,0.00016078,2]
[400785784,1767828644176,-2000.0,0.00016078,2]
[400785786,1767828644185,-500.0,0.00016078,2]
[400785788,1767828644194,-500.0,0.00016078,2]
[400785790,1767828644204,-250.0,0.00016078,2]
[400785791,1767828644214,-500.0,0.00016078,2]
[400785793,1767828644224,-2000.0,0.00016078,2]
[400785796,1767828644233,-500.0,0.00016078,2]
[400785798,1767828644242,-500.0,0.00016078,2]
[400785800,1767828644252,-2000.0,0.00016078,2]
[400785802,1767828644262,-250.0,0.00016078,2]
[400785804,1767828644272,-2000.0,0.00016078,2]
[400785806,1767828644282,-500.0,0.00016078,2]
[400785808,1767828644291,-250.0,0.00016078,2]
[400785810,1767828644301,-500.0,0.00016078,2]
[400785812,1767828644310,-2000.0,0.00016078,2]
[400785815,1767828644320,-250.0,0.00016078,2]
[400785817,1767828644330,-500.0,0.00016078,2]
[400785819,1767828644339,-500.0,0.00016078,2]
[400785821,1767828644349,-2000.0,0.00016078,2]
[400785823,1767828644359,-250.0,0.00016078,2]
[400785825,1767828644369,-500.0,0.00016078,2]
[400785827,1767828644381,-2000.0,0.00016078,2]
[400785829,1767828644391,-250.0,0.00016078,2]
[400785862,1767828644688,-500.0,0.00016078,2]
[400785864,1767828644698,-2000.0,0.00016078,2]
[400785866,1767828644708,-250.0,0.00016078,2]
[400785868,1767828644717,-500.0,0.00016078,2]
[400785870,1767828644726,-250.0,0.00016078,2]
[400785872,1767828644736,-500.0,0.00016078,2]
[400785874,1767828644744,-250.0,0.00016078,2]
[400785876,1767828644754,-500.0,0.00016078,2]
[400785877,1767828644763,-250.0,0.00016078,2]
[400785880,1767828644773,-151.0,0.00016078,2]
[400785882,1767828644782,-578.20924308,0.00016078,2]
[400785883,1767828644791,-250.0,0.00016078,2]
[400785885,1767828644801,-250.0,0.00016078,2]
[400785888,1767828644811,-522.24,0.00016081,2]
[400785890,1767828644820,-500.0,0.00016115,2]
[400785892,1767828644830,-500.0,0.00016115,2]
[400785894,1767828644840,-9999.99,0.00016116,2]
[400785895,1767828644849,-150.0,0.00016126,2]
[400785898,1767828644859,-500.0,0.00016126,2]
[400785899,1767828644868,-150.0,0.00016126,2]
[400785902,1767828644879,-150.0,0.00016126,2]
[400785904,1767828644888,-500.0,0.00016126,2]
[400785905,1767828644898,-500.0,0.00016126,2]
[400785908,1767828644907,-1755.28,0.00016164,2]
[400785910,1767828644916,-1500.0,0.00016168,2]
[400785911,1767828644925,-1001.70391837,0.00016168,2]
[400785913,1767828644934,-449.69083076,0.00016168,2]
[400785915,1767828644943,-1500.0,0.00016168,2]
[400785917,1767828644953,-1500.0,0.00016168,2]
[400785919,1767828644964,-876.44941512,0.00016168,2]
[400785921,1767828644974,-1500.0,0.00016168,2]
[400785923,1767828644988,-1500.0,0.00016168,2]
[400785925,1767828645000,-1500.0,0.00016168,2]
[400785926,1767828645010,-1500.0,0.00016168,2]
[400785927,1767828645020,-628.37348131,0.00016168,2]
[400785928,1767828645029,-1500.0,0.00016168,2]
[400785929,1767828645038,-1500.0,0.00016168,2]
[400785930,1767828645047,-200.0,0.0001618,2]
[400785931,1767828645057,-500.0,0.0001618,2]
[400785932,1767828645066,-150.0,0.0001618,2]
[400785933,1767828645078,-150.0,0.0001618,2]
[400785934,1767828645087,-500.0,0.0001618,2]
[400785935,1767828645096,-500.0,0.0001618,2]
[400785936,1767828645105,-201.46703271,0.00016195,2]
[400785937,1767828645114,-587.0,0.00016197,2]
[400785939,1767828645124,-36897.50308646,0.000162,5]
[400785941,1767828645134,-787.35487633,0.00016212,2]
[400785943,1767828645143,-500.0,0.00016235,2]
[400785945,1767828645153,-179.16326783,0.00016235,2]
[400785947,1767828645162,-285.51728142,0.00016235,2]
[400785949,1767828645172,-500.0,0.00016235,2]
[400785951,1767828645182,-500.0,0.00016235,2]
[400785953,1767828645191,-335.1109073,0.0001629,2]
[400785955,1767828645200,-500.0,0.0001629,2]
[400785957,1767828645209,-606.19487819,0.0001629,2]
[400785959,1767828645219,-615.06492354,0.0001629,2]
[400785961,1767828645228,-500.0,0.0001629,2]
[400785963,1767828645238,-500.0,0.0001629,2]
[400785965,1767828645247,-500.0,0.0001629,2]
[400785967,1767828645257,-524.88501728,0.0001629,2]
[400785969,1767828645267,-500.0,0.0001629,2]
[400785971,1767828645276,-500.0,0.0001629,2]
[400785973,1767828645286,-500.0,0.0001629,2]
[400785975,1767828645295,-500.0,0.0001629,2]
[400785977,1767828645304,-500.0,0.0001629,2]
[400785979,1767828645314,-500.0,0.0001629,2]
[400785981,1767828645324,-500.0,0.0001629,2]
[400785983,1767828645334,-148907.4120696,0.00016291,2]
[400785986,1767828645344,-2351.0,0.00016312,2]
[400785988,1767828645354,-1322.49512859,0.00016331,2]
[400785989,1767828645363,-500.0,0.00016337,2]
[400785991,1767828645373,-500.0,0.00016337,2]
[400785993,1767828645383,-12104.0646,0.00016338,2]
[400785996,1767828645394,-200.0,0.0001634,2]
[400785998,1767828645403,-500.0,0.00016345,2]
[400786000,1767828645414,-500.0,0.000164,2]
[400786001,1767828645424,-500.0,0.00016432,2]
[400786003,1767828645434,-274.431,0.00016437,2]
[400786006,1767828645444,-1755.28,0.00016438,2]
[400786008,1767828645455,-500.0,0.00016438,2]
[400786010,1767828645464,-901.50125922,0.00016438,2]
[400786012,1767828645474,-901.50125922,0.00016438,2]
[400786014,1767828645484,-901.50125922,0.00016438,2]
[400786016,1767828645494,-901.50125922,0.00016438,2]
[400786018,1767828645504,-901.50125922,0.00016438,2]
[400786020,1767828645513,-901.50125922,0.00016438,2]
[400786022,1767828645523,-901.50125922,0.00016438,2]
[400786024,1767828645532,-901.50125922,0.00016438,2]
[400786026,1767828645542,-901.50125922,0.00016438,2]
[400786028,1767828645552,-901.50125922,0.00016438,2]
[400786030,1767828645562,-901.50125922,0.00016438,2]
[400786032,1767828645573,-901.50125922,0.00016438,2]
[400786034,1767828645585,-901.50125922,0.00016438,2]
[400786038,1767828645594,-901.50125922,0.00016438,2]
[400786042,1767828645604,-901.50125922,0.00016438,2]
[400786046,1767828645614,-901.50125922,0.00016438,2]
[400786050,1767828645624,-901.50125922,0.00016438,2]
[400786055,1767828645633,-901.50125922,0.00016438,2]
[400786058,1767828645643,-901.50125922,0.00016438,2]
[400786062,1767828645654,-901.50125922,0.00016438,2]
[400786065,1767828645664,-901.50125922,0.00016438,2]
[400786067,1767828645675,-901.50125922,0.00016438,2]
[400786070,1767828645685,-901.50125922,0.00016438,2]
[400786072,1767828645696,-901.50125922,0.00016438,2]
[400786074,1767828645707,-901.50125922,0.00016438,2]
[400786076,1767828645717,-901.50125922,0.00016438,2]
[400786078,1767828645727,-901.50125922,0.00016438,2]
[400786080,1767828645737,-901.50125922,0.00016438,2]
[400786082,1767828645747,-901.50125922,0.00016438,2]
[400786084,1767828645757,-901.50125922,0.00016438,2]
[400786087,1767828645768,-901.50125922,0.00016438,2]
[400786088,1767828645778,-901.50125922,0.00016438,2]
[400786090,1767828645788,-901.50125922,0.00016438,2]
[400786093,1767828645798,-901.50125922,0.00016438,2]
[400786095,1767828645808,-901.50125922,0.00016438,2]
[400786097,1767828645818,-901.50125922,0.00016438,2]
[400786099,1767828645827,-901.50125922,0.00016438,2]
[400786101,1767828645837,-901.50125922,0.00016438,2]
[400786103,1767828645855,-901.50125922,0.00016438,2]
[400786105,1767828645873,-901.50125922,0.00016438,2]
[400786107,1767828645884,-901.50125922,0.00016438,2]